bitfinex-derivatives/quotes_BTCF0:USTF0_20241003
["timestamp","ask_amount","ask_price","bid_price","bid_amount"]
[1727922097280,0.081704,61199.0,61198.0,0.0038]
[1727922097581,0.081715,61191.0,61189.0,0.3646]
[1727922097780,0.081715,61191.0,61189.0,0.3608]
[1727922098686,0.081715,61191.0,61188.0,0.19558837]
[1727922098980,0.081715,61191.0,61188.0,0.11386937]
[1727922099183,0.442515,61191.0,61190.0,0.00945091]
[1727922099377,0.442515,61191.0,61190.0,0.01845091]
[1727922104788,0.081715,61191.0,61190.0,0.01845091]
[1727922106195,0.442515,61191.0,61190.0,0.01845091]
[1727922107282,0.442515,61191.0,61190.0,0.10016691]
[1727922107493,0.0038,61200.0,61190.0,0.01845091]
[1727922107797,0.02363699,61199.0,61195.0,0.081709]
[1727922107986,0.081708,61196.0,61195.0,0.081709]
[1727922108185,0.081714,61192.0,61191.0,0.112315]
[1727922108382,0.23534099,61199.0,61190.0,0.14845091]
[1727922108588,0.081715,61191.0,61190.0,0.01145091]
[1727922108792,0.081715,61191.0,61190.0,0.01845091]
[1727922108997,0.081715,61191.0,61190.0,0.00945091]
[1727922109187,0.211715,61191.0,61190.0,0.00945091]
[1727922109587,0.081715,61191.0,61190.0,0.00945091]
[1727922110089,0.081715,61191.0,61190.0,0.01845091]
[1727922111504,0.081715,61191.0,61190.0,0.00945091]
[1727922111690,0.082715,61191.0,61190.0,0.01845091]
[1727922120106,0.001,61191.0,61190.0,0.23016691]
[1727922121807,0.3608,61198.0,61190.0,0.23016691]
[1727922122004,0.3608,61198.0,61197.0,0.081707]
[1727922122714,0.3608,61198.0,61190.0,0.01845091]
[1727922123005,0.211715,61191.0,61190.0,0.01845091]
[1727922123212,0.211715,61191.0,61190.0,0.00945091]
[1727922123712,0.211715,61191.0,61190.0,0.00245091]
[1727922123902,0.211715,61191.0,61190.0,0.00945091]
[1727922124911,0.211715,61191.0,61190.0,0.01845091]
[1727922125409,0.573515,61191.0,61190.0,0.01845091]
[1727922126302,0.082715,61191.0,61190.0,0.10016691]
[1727922127009,0.30355251,61198.0,61190.0,0.68549013]
[1727922127212,0.081714,61193.0,61191.0,0.30320722]
[1727922127395,0.081714,61193.0,61192.0,0.30320722]
[1727922128295,0.32739857,61198.0,61192.0,0.30320722]
[1727922128498,0.38525851,61198.0,61196.0,0.081708]
[1727922128699,0.38525851,61198.0,61197.0,0.33024343]
[1727922130007,0.38525851,61198.0,61197.0,0.44451026]
[1727922130311,0.38525851,61198.0,61197.0,0.56905632]
[1727922130503,0.38525851,61198.0,61197.0,0.39041108]
[1727922131405,0.38525851,61198.0,61197.0,0.39241108]
[1727922132418,0.38525851,61198.0,61197.0,0.47411808]
[1727922132912,0.38525851,61198.0,61197.0,0.39241108]
[1727922134016,0.38525851,61198.0,61197.0,0.27814425]
[1727922134312,0.34436847,61198.0,61197.0,0.002]
[1727922135005,0.081706,61198.0,61197.0,0.002]
[1727922135199,0.442506,61198.0,61197.0,0.002]
[1727922137312,0.442506,61198.0,61197.0,0.083707]
[1727922137313,0.081706,61198.0,61197.0,0.083707]
[1727922142818,0.081706,61198.0,61197.0,0.002]
[1727922146218,0.442506,61198.0,61197.0,0.08357691]
[1727922147511,0.442506,61198.0,61197.0,0.083707]
[1727922148025,0.3608,61208.0,61197.0,0.132]
[1727922148215,0.3608,61208.0,61207.0,0.081694]
[1727922148411,0.38388652,61208.0,61201.0,0.13]
[1727922148620,0.081698,61204.0,61203.0,0.081699]
[1727922150021,0.087698,61204.0,61203.0,0.082699]
[1727922150622,0.087698,61204.0,61203.0,0.001]
[1727922150924,0.081707,61197.0,61196.0,0.0038]
[1727922151219,0.081707,61197.0,61196.0,0.20607782]
[1727922151616,0.081707,61197.0,61196.0,0.08152973]
[1727922152908,0.081707,61197.0,61196.0,0.08252973]
[1727922153320,0.10577066,61197.0,61196.0,0.08252973]
[1727922153523,0.10577066,61197.0,61196.0,0.08552973]
[1727922153927,0.10577066,61197.0,61196.0,0.004]
[1727922162423,0.23577066,61197.0,61196.0,0.004]
[1727922165030,0.23577066,61197.0,61196.0,0.08555191]
[1727922165530,0.081715,61191.0,61190.0,0.00245091]
[1727922165829,0.081724,61185.0,61183.0,0.081726]
[1727922166031,0.13,61184.0,61183.0,0.081726]
[1727922166429,0.211724,61184.0,61183.0,0.081726]
[1727922166724,0.081728,61181.0,61180.0,0.081729]
[1727922166925,0.13,61184.0,61180.0,0.081729]
[1727922167726,0.08173,61181.0,61180.0,0.081729]
[1727922168136,0.131,61184.0,61180.0,0.014]
[1727922168425,0.081728,61181.0,61180.0,0.014]
[1727922168833,0.081728,61181.0,61180.0,0.13857271]
[1727922169225,0.081728,61181.0,61180.0,0.15257271]
[1727922169827,0.082728,61181.0,61180.0,0.14857271]
[1727922170031,0.083728,61181.0,61180.0,0.23030271]
[1727922170638,0.083728,61181.0,61180.0,0.10573]
[1727922178331,0.002,61181.0,61180.0,0.10573]
[1727922179443,0.06610475,61185.0,61183.0,0.081726]
[1727922179737,0.081717,61190.0,61189.0,0.081717]
[1727922180341,0.10542469,61190.0,61189.0,0.081717]
[1727922181533,0.10542469,61190.0,61186.0,0.081721]
[1727922181534,0.08172,61187.0,61186.0,0.081721]
[1727922182441,0.13,61189.0,61184.0,0.09783283]
[1727922182738,0.13,61189.0,61188.0,0.081719]
[1727922182940,0.211718,61189.0,61188.0,0.20628256]
[1727922183441,0.211718,61189.0,61188.0,0.081719]
[1727922184047,0.212718,61189.0,61188.0,0.081719]
[1727922184640,0.213718,61189.0,61188.0,0.090719]
[1727922185136,0.213718,61189.0,61188.0,0.101719]
[1727922186140,0.083718,61189.0,61188.0,0.101719]
[1727922186329,0.13389016,61189.0,61188.0,0.101719]
[1727922188345,0.083718,61189.0,61188.0,0.101719]
[1727922188838,0.213718,61189.0,61188.0,0.02]
[1727922192443,0.002,61189.0,61188.0,0.101719]
[1727922193240,0.05217052,61189.0,61188.0,0.101719]
[1727922194346,0.002,61189.0,61188.0,0.101719]
[1727922195545,0.083718,61189.0,61188.0,0.101719]
[1727922196052,0.083718,61189.0,61188.0,0.02]
[1727922198558,0.083718,61189.0,61188.0,0.101719]
[1727922201444,0.002,61189.0,61188.0,0.101719]
[1727922204255,0.083718,61189.0,61188.0,0.101719]
[1727922204656,0.002,61189.0,61188.0,0.101719]
[1727922209156,0.083718,61189.0,61188.0,0.101719]
[1727922209460,0.13388881,61189.0,61188.0,0.101719]
[1727922209850,0.13388881,61189.0,61188.0,0.02]
[1727922210249,0.26388881,61189.0,61188.0,0.02]
[1727922213758,0.42723645,61189.0,61188.0,0.02]
[1727922216457,0.37706564,61189.0,61188.0,0.02]
[1727922219659,0.33706564,61189.0,61188.0,0.02]
[1727922221560,0.33706564,61189.0,61177.0,0.0038]
[1727922221561,0.081727,61182.0,61177.0,0.0038]
[1727922221760,0.081727,61182.0,61171.0,0.0038]
[1727922221761,0.08174,61172.0,61171.0,0.0038]
[1727922222075,0.08174,61172.0,61170.0,0.081743]
[1727922222076,0.081743,61171.0,61170.0,0.081743]
[1727922222870,0.067743,61171.0,61170.0,0.081743]
[1727922223256,0.08175,61165.0,61164.0,0.00245247]
[1727922223461,0.17175,61165.0,61164.0,0.00245247]
[1727922223769,0.20775,61165.0,61164.0,0.00245247]
[1727922224078,0.20775,61165.0,61156.0,0.0038]
[1727922224263,0.081762,61156.0,61153.0,0.0675]
[1727922224465,0.13,61157.0,61153.0,0.0321]
[1727922224466,0.081763,61155.0,61153.0,0.0321]
[1727922225670,0.13,61157.0,61153.0,0.0321]
[1727922225671,0.081764,61154.0,61153.0,0.0321]
[1727922226060,0.001,61155.0,61150.0,0.3608]
[1727922226261,0.211766,61153.0,61150.0,0.3608]
[1727922226959,0.211766,61153.0,61146.0,0.081774]
[1727922227159,0.13,61150.0,61146.0,0.081774]
[1727922227364,0.081771,61149.0,61146.0,0.081774]
[1727922228168,0.131,61150.0,61145.0,0.0304]
[1727922228364,0.211775,61146.0,61145.0,0.0304]
[1727922230471,0.212775,61146.0,61145.0,0.0304]
[1727922231169,0.213775,61146.0,61145.0,0.0314]
[1727922231371,0.002,61146.0,61145.0,0.0314]
[1727922231578,0.002,61146.0,61145.0,0.113176]
[1727922232476,0.002,61146.0,61145.0,0.603816]
[1727922232671,0.3608,61156.0,61153.0,0.081765]
[1727922232979,0.3903219,61156.0,61153.0,0.081765]
[1727922234074,0.3913219,61156.0,61153.0,0.081765]
[1727922234271,0.3923219,61156.0,61153.0,0.081765]
[1727922234773,0.3923219,61156.0,61154.0,0.081764]
[1727922235874,0.3923219,61156.0,61155.0,0.081763]
[1727922236068,0.002,61156.0,61155.0,0.211763]
[1727922236377,0.0038,61163.0,61158.0,0.081759]
[1727922236567,0.11031836,61165.0,61158.0,0.081759]
[1727922237272,0.4908,61166.0,61158.0,0.11075762]
[1727922237465,0.3608,61166.0,61158.0,0.11075762]
[1727922237661,0.4908,61166.0,61158.0,0.11075762]
[1727922238275,0.4908,61166.0,61158.0,0.11175762]
[1727922238664,0.4908,61166.0,61158.0,0.082759]
[1727922238872,0.081751,61164.0,61162.0,0.081752]
[1727922239076,0.49168,61166.0,61163.0,0.04870373]
[1727922239375,0.49168,61166.0,61164.0,0.04870373]
[1727922239376,0.4908,61166.0,61164.0,0.04870373]
[1727922239688,0.4908,61166.0,61163.0,0.081752]
[1727922240168,0.13,61166.0,61163.0,0.081752]
[1727922240369,0.132,61166.0,61163.0,0.081752]
[1727922240667,0.002,61166.0,61165.0,0.08175]
[1727922241479,0.006,61166.0,61165.0,0.08175]
[1727922242173,0.008,61166.0,61165.0,0.08175]
[1727922242576,0.01,61166.0,61165.0,0.08175]
[1727922243079,0.006,61166.0,61165.0,0.08175]
[1727922243867,0.007,61166.0,61165.0,0.08175]
[1727922244265,0.003,61166.0,61165.0,0.08175]
[1727922244775,0.003,61166.0,61158.0,0.3608]
[1727922244776,0.081754,61162.0,61161.0,0.081755]
[1727922245076,0.211754,61162.0,61161.0,0.081755]
[1727922246177,0.211754,61162.0,61154.0,0.0038]
[1727922246178,0.4908,61162.0,61154.0,0.0038]
[1727922246380,0.13,61155.0,61154.0,0.081763]
[1727922246683,0.211763,61155.0,61154.0,0.081763]
[1727922246978,0.081768,61151.0,61150.0,0.3608]
[1727922247184,0.211768,61151.0,61150.0,0.3608]
[1727922247776,0.081771,61150.0,61144.0,0.0301]
[1727922247979,0.13,61147.0,61146.0,0.081775]
[1727922248674,0.081773,61148.0,61146.0,0.081775]
[1727922249873,0.082773,61148.0,61146.0,0.081775]
[1727922250277,0.1116053,61148.0,61146.0,0.081775]
[1727922250876,0.001,61147.0,61146.0,0.081775]
[1727922251482,0.1116053,61148.0,61146.0,0.081775]
[1727922251691,0.1126053,61148.0,61147.0,0.081774]
[1727922252394,0.1116053,61148.0,61147.0,0.081774]
[1727922253086,0.1106053,61148.0,61147.0,0.081774]
[1727922253274,0.0288323,61148.0,61147.0,0.081774]
[1727922253473,0.13,61149.0,61148.0,0.081772]
[1727922254675,0.081769,61151.0,61148.0,0.081772]
[1727922254888,0.001,61149.0,61148.0,0.081772]
[1727922255476,0.002,61149.0,61148.0,0.081772]
[1727922255792,0.002,61149.0,61148.0,0.442572]
[1727922256688,0.001,61149.0,61148.0,0.442572]
[1727922257697,0.002,61149.0,61148.0,0.442572]
[1727922258191,0.002,61149.0,61148.0,0.56720363]
[1727922258397,0.002,61149.0,61148.0,0.5965573]
[1727922259397,0.002,61149.0,61148.0,0.47192567]
[1727922260495,0.002,61149.0,61148.0,0.59655856]
[1727922261899,0.085562,61156.0,61154.0,0.081764]
[1727922262197,0.081762,61156.0,61155.0,0.08156927]
[1727922262391,0.081762,61156.0,61155.0,0.20620178]
[1727922263094,0.082762,61156.0,61155.0,0.20620178]
[1727922263293,0.165525,61156.0,61154.0,0.16433327]
[1727922263493,0.083762,61156.0,61155.0,0.08156927]
[1727922263888,0.082762,61156.0,61155.0,0.08156927]
[1727922264089,0.1118968,61156.0,61155.0,0.16433227]
[1727922264285,0.001,61156.0,61155.0,0.20739549]
[1727922264501,0.0038,61164.0,61163.0,0.081752]
[1727922264811,0.081742,61171.0,61170.0,0.081743]
[1727922265189,0.145038,61174.0,61171.0,0.081741]
[1727922265499,0.0633,61174.0,61172.0,0.0652428]
[1727922266493,0.08174,61172.0,61171.0,0.1469838]
[1727922267293,0.08174,61172.0,61171.0,0.081741]
[1727922267694,0.09474,61172.0,61171.0,0.081741]
[1727922268604,0.08674,61172.0,61171.0,0.081741]
[1727922268994,0.09774,61172.0,61171.0,0.081741]
[1727922269399,0.08674,61172.0,61171.0,0.081741]
[1727922269704,0.09174,61172.0,61171.0,0.081741]
[1727922270095,0.09274,61172.0,61171.0,0.081741]
[1727922270300,0.09474,61172.0,61171.0,0.081741]
[1727922271000,0.09474,61172.0,61168.0,0.081745]
[1727922271001,0.081744,61170.0,61168.0,0.081745]
[1727922271207,0.13,61169.0,61168.0,0.081745]
[1727922272800,0.133,61169.0,61168.0,0.081745]
[1727922273507,0.214744,61169.0,61168.0,0.081745]
[1727922274110,0.214744,61169.0,61167.0,0.04889732]
[1727922274111,0.138,61169.0,61167.0,0.04889732]
[1727922274300,0.081746,61168.0,61167.0,0.04889732]
[1727922275506,0.083746,61168.0,61167.0,0.04889732]
[1727922276700,0.087746,61168.0,61167.0,0.04889732]
[1727922277313,0.006,61168.0,61164.0,0.08175]
[1727922277497,0.13,61165.0,61164.0,0.08175]
[1727922279514,0.18019076,61165.0,61164.0,0.08175]
[1727922279700,0.18119076,61165.0,61164.0,0.08175]
[1727922280103,0.18119077,61165.0,61164.0,0.08175]
[1727922280617,0.26294077,61165.0,61164.0,0.08175]
[1727922280809,0.081755,61162.0,61160.0,0.081755]
[1727922281010,0.18119077,61165.0,61160.0,0.081755]
[1727922281011,0.13,61161.0,61160.0,0.081755]
[1727922281319,0.26194617,61161.0,61160.0,0.081755]
[1727922281519,0.26194617,61161.0,61154.0,0.0333]
[1727922281520,0.18019117,61161.0,61154.0,0.0333]
[1727922281744,0.22431899,61165.0,61154.0,0.081764]
[1727922281745,0.211763,61155.0,61154.0,0.081764]
[1727922281913,0.26195998,61155.0,61154.0,0.081764]
[1727922283406,0.26295998,61155.0,61154.0,0.081764]
[1727922283808,0.26295998,61155.0,61154.0,0.20739012]
[1727922283809,0.002,61155.0,61154.0,0.20739012]
[1727922284004,0.132,61155.0,61154.0,0.20739012]
[1727922284811,0.24318919,61155.0,61154.0,0.22350237]
[1727922285006,0.24318919,61155.0,61154.0,0.12562612]
[1727922285912,0.24318919,61155.0,61154.0,0.20719633]
[1727922286125,0.60398919,61155.0,61154.0,0.001]
[1727922286306,0.60398919,61155.0,61154.0,0.06625273]
[1727922286511,1.09454919,61155.0,61154.0,0.06625273]
[1727922286813,1.09454919,61155.0,61154.0,0.001]
[1727922286814,1.69454919,61155.0,61154.0,0.001]
[1727922287202,1.69454919,61155.0,61154.0,0.04994194]
[1727922287503,1.69454919,61155.0,61154.0,0.001]
[1727922287710,0.49056,61154.0,61149.0,0.06525273]
[1727922287911,0.081771,61149.0,61148.0,0.14682294]
[1727922288425,1.172371,61149.0,61148.0,0.14682294]
[1727922290311,1.533171,61149.0,61148.0,0.06525273]
[1727922290721,0.933171,61149.0,61148.0,0.06525273]
[1727922291014,0.935171,61149.0,61148.0,0.06525273]
[1727922291614,0.935171,61149.0,61140.0,0.08803487]
[1727922291814,0.13,61141.0,61140.0,0.08423487]
[1727922292013,0.211782,61141.0,61140.0,0.08423487]
[1727922292407,0.211782,61141.0,61140.0,0.00245287]
[1727922293718,0.212782,61141.0,61140.0,0.00245287]
[1727922294619,0.24180601,61141.0,61140.0,0.00245287]
[1727922294825,0.24280601,61141.0,61140.0,0.00245287]
[1727922300229,0.002,61141.0,61140.0,0.08423587]
[1727922300424,0.002,61141.0,61140.0,0.21423587]
[1727922300624,0.0038,61149.0,61148.0,0.081772]
[1727922300929,0.0301684,61149.0,61148.0,0.081772]
[1727922301118,0.13,61151.0,61140.0,0.00625287]
[1727922301319,0.13,61142.0,61140.0,0.00245287]
[1727922301518,0.081782,61141.0,61140.0,0.00245287]
[1727922303123,0.082782,61141.0,61140.0,0.00245287]
[1727922303325,0.083782,61141.0,61140.0,0.00345287]
[1727922306526,0.11283418,61141.0,61140.0,0.00345287]
[1727922307638,0.002,61141.0,61140.0,0.08523587]
[1727922308028,0.002,61141.0,61140.0,0.082783]
[1727922308226,0.0038,61150.0,61140.0,1.173463]
[1727922308528,0.532563,61155.0,61152.0,0.081767]
[1727922308529,0.033798,61153.0,61152.0,0.081767]
[1727922308723,0.4508,61155.0,61151.0,0.09]
[1727922308931,0.4508,61155.0,61153.0,0.081765]
[1727922309623,0.3608,61155.0,61153.0,0.081765]
[1727922310229,0.3608,61155.0,61154.0,0.081764]
[1727922310534,0.39060353,61155.0,61154.0,0.081764]
[1727922310923,0.081757,61160.0,61158.0,0.081759]
[1727922312433,0.02930263,61162.0,61158.0,0.081759]
[1727922312639,0.081758,61159.0,61158.0,0.081759]
[1727922314422,0.214758,61159.0,61158.0,0.081759]
[1727922315032,0.133,61159.0,61158.0,0.081759]
[1727922315633,0.138,61159.0,61158.0,0.081759]
[1727922316139,0.17804765,61159.0,61158.0,0.081759]
[1727922316642,0.25980565,61159.0,61158.0,0.081759]
[1727922316830,0.17804765,61159.0,61158.0,0.081759]
[1727922319340,0.17804765,61159.0,61152.0,0.0038]
[1727922319341,0.081763,61155.0,61154.0,0.081764]
[1727922319536,0.081763,61155.0,61148.0,0.0038]
[1727922319537,0.211763,61155.0,61148.0,0.0038]
[1727922319752,0.081795,61131.0,61113.0,0.05910883]
[1727922319929,0.081795,61131.0,61112.0,0.11414187]
[1727922319930,0.13,61123.0,61119.0,0.00092]
[1727922320235,0.13,61123.0,61112.0,0.11414187]
[1727922320236,0.13,61126.0,61112.0,0.11414187]
[1727922320432,0.13,61126.0,61113.0,0.13]
[1727922320738,0.0818,61128.0,61113.0,0.13]
[1727922321234,0.0818,61128.0,61112.0,0.11414187]
[1727922321235,0.001,61123.0,61119.0,0.002]
[1727922321641,0.13,61125.0,61111.0,0.0606]
[1727922321837,0.13,61125.0,61113.0,0.004]
[1727922322233,0.001,61126.0,61117.0,0.13]
[1727922322439,0.001,61126.0,61121.0,0.13]
[1727922322631,0.001,61123.0,61121.0,0.13]
[1727922323037,0.001,61123.0,61121.0,0.62084]
[1727922324244,0.003,61126.0,61121.0,0.62084]
[1727922324446,0.003,61126.0,61121.0,0.13]
[1727922325142,0.002,61123.0,61121.0,0.13]
[1727922325839,0.001,61126.0,61121.0,0.13]
[1727922327550,0.003,61123.0,61121.0,0.13]
[1727922328245,0.087802,61126.0,61121.0,0.13]
[1727922328641,0.081804,61125.0,61121.0,0.13]
[1727922329047,0.002,61123.0,61121.0,0.13]
[1727922329247,0.083806,61123.0,61121.0,0.13]
[1727922329447,0.083806,61123.0,61117.0,0.211814]
[1727922329741,0.002,61123.0,61119.0,0.08181]
[1727922330138,0.083807,61123.0,61120.0,0.49084]
[1727922330648,0.081782,61141.0,61122.0,0.13]
[1727922330649,0.081794,61132.0,61122.0,0.13]
[1727922330843,0.081794,61132.0,61121.0,0.49084]
[1727922330844,0.007,61125.0,61123.0,0.0939]
[1727922331147,0.13,61139.0,61124.0,0.13]
[1727922331339,0.081799,61128.0,61124.0,0.13]
[1727922331539,0.13,61135.0,61123.0,0.0939]
[1727922331743,0.081805,61124.0,61123.0,0.0637]
[1727922331934,0.13,61127.0,61110.0,0.17946952]
[1727922331935,0.081815,61116.0,61110.0,0.17946952]
[1727922332252,0.081815,61116.0,61112.0,0.0642]
[1727922332952,0.211815,61116.0,61112.0,0.0642]
[1727922333341,0.081819,61114.0,61112.0,0.0642]
[1727922334256,0.13,61116.0,61112.0,0.0322]
[1727922334257,0.081819,61113.0,61112.0,0.0322]
[1727922335242,0.081819,61113.0,61112.0,0.0362]
[1727922336642,0.082819,61113.0,61112.0,0.0322]
[1727922336838,0.0418765,61113.0,61112.0,0.0362]
[1727922337746,0.0418765,61113.0,61112.0,0.004]
[1727922340549,0.001,61113.0,61112.0,0.004]
[1727922342347,0.001,61113.0,61112.0,0.085821]
[1727922343841,0.114102,61126.0,61112.0,0.937501]
[1727922344047,0.114102,61126.0,61122.0,0.081806]
[1727922344048,0.081805,61124.0,61122.0,0.081806]
[1727922346339,0.086805,61124.0,61123.0,0.081806]
[1727922347148,0.092805,61124.0,61123.0,0.081806]
[1727922347849,0.081805,61124.0,61123.0,0.081806]
[1727922348151,0.094805,61124.0,61123.0,0.082806]
[1727922349348,0.094805,61124.0,61123.0,0.001]
[1727922349349,0.224805,61124.0,61123.0,0.001]
[1727922356642,0.585605,61124.0,61123.0,0.001]
[1727922364559,0.0038,61133.0,61131.0,0.081794]
[1727922364759,0.44259,61135.0,61132.0,0.112794]
[1727922364959,0.44259,61135.0,61133.0,0.062]
[1727922365461,0.3608,61135.0,61134.0,0.081791]
[1727922365856,0.3608,61135.0,61134.0,0.16352267]
[1727922366061,0.3608,61135.0,61134.0,0.081791]
[1727922366772,0.4908,61135.0,61134.0,0.081791]
[1727922366957,0.4968,61135.0,61134.0,0.081791]
[1727922367162,0.4978,61135.0,61134.0,0.081791]
[1727922367773,0.4928,61135.0,61134.0,0.081791]
[1727922368664,0.001,61135.0,61134.0,0.081791]
[1727922368874,0.21279,61135.0,61134.0,0.001]
[1727922369061,0.26300648,61135.0,61134.0,0.001]
[1727922369566,0.26200648,61135.0,61134.0,0.001]
[1727922369963,0.05021648,61135.0,61134.0,0.001]
[1727922370167,0.17942078,61141.0,61134.0,1.365911]
[1727922370372,0.17942078,61141.0,61140.0,0.211783]
[1727922371470,0.19342078,61141.0,61140.0,0.212783]
[1727922371860,0.0038,61150.0,61140.0,1.303463]
[1727922372067,0.0038,61153.0,61152.0,0.081767]
[1727922372258,0.3608,61157.0,61155.0,0.081763]
[1727922372459,0.3608,61157.0,61156.0,0.081762]
[1727922373069,0.081758,61159.0,61156.0,0.081762]
[1727922373667,0.08176,61158.0,61156.0,0.081762]
[1727922373873,0.011,61157.0,61156.0,0.082762]
[1727922374278,0.011,61157.0,61156.0,0.083762]
[1727922375374,0.006,61157.0,61156.0,0.082762]
[1727922375567,0.006,61157.0,61156.0,0.083762]
[1727922376265,0.009,61157.0,61156.0,0.082762]
[1727922376874,0.001,61157.0,61156.0,0.136662]
[1727922377175,0.005,61157.0,61156.0,1.227222]
[1727922377368,0.004,61157.0,61156.0,1.227222]
[1727922379179,0.3646,61164.0,61163.0,0.081752]
[1727922379483,0.3608,61164.0,61163.0,0.081752]
[1727922380378,0.3718,61164.0,61163.0,0.082752]
[1727922380684,0.3768,61164.0,61163.0,0.083752]
[1727922381667,0.3768,61164.0,61163.0,0.138652]
[1727922383085,0.016,61164.0,61163.0,0.138652]
[1727922384566,0.016,61164.0,61163.0,0.0569]
[1727922384567,0.097751,61164.0,61163.0,0.0569]
[1727922386077,0.458551,61164.0,61163.0,0.0569]
[1727922386273,0.588551,61164.0,61163.0,0.0569]
[1727922386873,0.61873734,61164.0,61163.0,0.0569]
[1727922389187,0.84724833,61164.0,61163.0,0.0569]
[1727922389684,0.081752,61163.0,61155.0,0.0038]
[1727922389985,0.081752,61163.0,61148.0,0.3232]
[1727922389986,0.16215995,61157.0,61156.0,0.081762]
[1727922390482,0.05019428,61157.0,61156.0,0.081762]
[1727922391585,0.16215995,61158.0,61156.0,0.081762]
[1727922391878,0.16215995,61158.0,61157.0,0.21176]
[1727922392690,0.16615995,61158.0,61157.0,0.21176]
[1727922393492,0.16715995,61158.0,61157.0,0.21176]
[1727922393983,0.008,61158.0,61157.0,0.21176]
[1727922394878,0.0038,61165.0,61164.0,0.081751]
[1727922395077,0.5514,61176.0,61167.0,0.081747]
[1727922395078,0.0038,61173.0,61167.0,0.081747]
[1727922395287,0.085545,61169.0,61167.0,0.081747]
[1727922395485,0.081745,61169.0,61167.0,0.081747]
[1727922396079,0.081745,61169.0,61164.0,0.0664]
[1727922396286,0.02933342,61173.0,61167.0,0.13]
[1727922396483,0.08174,61172.0,61168.0,0.081744]
[1727922396682,0.007,61169.0,61167.0,0.131]
[1727922396886,0.007,61169.0,61168.0,0.081746]
[1727922397790,0.007,61169.0,61164.0,0.0664]
[1727922397989,0.08175,61165.0,61164.0,0.082751]
[1727922398790,0.08175,61165.0,61164.0,0.081751]
[1727922399691,0.08275,61165.0,61164.0,0.083751]
[1727922401693,0.001,61165.0,61164.0,0.14886738]
[1727922401895,0.001,61165.0,61164.0,0.083751]
[1727922404091,0.14987346,61165.0,61164.0,0.083751]
[1727922404295,0.30354921,61165.0,61164.0,0.083751]
[1727922404697,0.14987346,61165.0,61164.0,0.083751]
[1727922404899,0.09122889,61165.0,61164.0,0.083751]
[1727922405100,0.14987346,61165.0,61164.0,0.083751]
[1727922405293,0.23162346,61165.0,61164.0,0.083751]
[1727922405489,0.38533463,61165.0,61164.0,0.002]
[1727922405684,0.4439792,61165.0,61164.0,0.002]
[1727922405891,0.17297889,61165.0,61164.0,0.002]
[1727922406186,0.23162346,61165.0,61164.0,0.002]
[1727922407497,0.23162596,61165.0,61164.0,0.002]
[1727922408302,0.1915842,61165.0,61164.0,0.00172458]
[1727922412102,0.08275,61165.0,61164.0,0.00172458]
[1727922412395,0.08275,61165.0,61164.0,0.08347558]
[1727922414705,0.08275,61165.0,61164.0,0.00172458]
[1727922418010,0.08275,61165.0,61164.0,0.08347558]
[1727922420895,0.08275,61165.0,61164.0,0.00172458]
[1727922422000,0.44355,61165.0,61164.0,0.00172458]
[1727922423209,0.081759,61158.0,61157.0,0.049018]
[1727922423403,0.211759,61158.0,61157.0,0.049018]
[1727922423604,0.702279,61158.0,61157.0,0.049018]
[1727922424318,0.706279,61158.0,61157.0,0.049018]
[1727922424518,0.709279,61158.0,61157.0,0.049018]
[1727922426603,1.309279,61158.0,61157.0,0.049018]
[1727922427206,0.218759,61158.0,61157.0,0.049018]
[1727922427511,0.709279,61158.0,61157.0,0.049018]
[1727922427697,0.218759,61158.0,61157.0,0.049018]
[1727922428212,0.24795197,61158.0,61157.0,0.049018]
[1727922431821,0.60875197,61158.0,61157.0,0.049018]
[1727922434313,0.08177,61150.0,61149.0,0.0038]
[1727922434510,0.52699297,61158.0,61145.0,0.081776]
[1727922434511,0.081772,61148.0,61145.0,0.081776]
[1727922435298,0.081767,61152.0,61145.0,0.081776]
[1727922435501,0.081767,61152.0,61141.0,0.063]
[1727922435502,0.081767,61152.0,61141.0,0.144782]
[1727922435712,0.081776,61146.0,61141.0,0.144782]
[1727922435915,0.081776,61146.0,61142.0,0.08178]
[1727922436409,0.081776,61146.0,61141.0,0.063]
[1727922436599,0.081776,61146.0,61145.0,0.091776]
[1727922437318,0.081776,61146.0,61145.0,0.081776]
[1727922437913,0.081778,61144.0,61143.0,0.0124531]
[1727922438108,0.081778,61144.0,61143.0,0.0942321]
[1727922439014,0.081778,61144.0,61143.0,0.0842321]
[1727922440000,0.084778,61144.0,61143.0,0.0842321]
[1727922440611,0.082778,61144.0,61143.0,0.0842321]
[1727922440811,0.084778,61144.0,61143.0,0.0842321]
[1727922441311,0.085778,61144.0,61143.0,0.0842321]
[1727922442219,0.13598167,61144.0,61143.0,0.0842321]
[1727922442516,0.13698167,61144.0,61143.0,0.0842321]
[1727922443310,0.13198167,61144.0,61143.0,0.0842321]
[1727922443511,0.13698167,61144.0,61143.0,0.0024531]
[1727922444019,0.62778167,61144.0,61143.0,0.0024531]
[1727922444313,0.68644426,61144.0,61143.0,0.0024531]
[1727922444515,0.68644426,61144.0,61135.0,0.035]
[1727922444516,0.60466626,61144.0,61135.0,0.035]
[1727922444708,0.211788,61136.0,61135.0,0.0312]
[1727922444915,0.081788,61136.0,61135.0,0.11299]
[1727922446111,0.17951127,61139.0,61135.0,0.0312]
[1727922446316,0.13200121,61138.0,61137.0,0.081787]
[1727922447522,0.13300121,61138.0,61137.0,0.081787]
[1727922448628,0.05121421,61138.0,61135.0,0.0312]
[1727922448811,0.081788,61136.0,61135.0,0.0312]